bitfinex/quotes_BTCUSD_20251208
["timestamp","ask_amount","ask_price","bid_price","bid_amount"]
[1765207290264,0.01438884,90393.0,90392.0,0.50712826]
[1765207290696,0.00338884,90393.0,90392.0,0.50512826]
[1765207290916,0.00538884,90393.0,90392.0,0.51512826]
[1765207291044,0.00038884,90393.0,90392.0,0.50512826]
[1765207291460,0.00138884,90393.0,90392.0,0.51112826]
[1765207291663,0.00138884,90393.0,90392.0,0.51612826]
[1765207292274,0.00138884,90393.0,90392.0,0.51112826]
[1765207292722,0.00138884,90393.0,90392.0,0.51512826]
[1765207293992,0.00138884,90393.0,90392.0,0.01023826]
[1765207294398,0.00138884,90393.0,90392.0,0.07604826]
[1765207296245,0.00138884,90393.0,90392.0,0.17436826]
[1765207296594,0.00138884,90393.0,90392.0,0.07604826]
[1765207297214,0.00138884,90393.0,90392.0,0.17436826]
[1765207297428,0.00138884,90393.0,90392.0,0.71862677]
[1765207302017,0.00138884,90393.0,90392.0,0.23149677]
[1765207302435,0.27421778,90393.0,90392.0,0.01023826]
[1765207302656,0.39575778,90393.0,90392.0,0.01023826]
[1765207303056,0.29641778,90393.0,90392.0,0.01023826]
[1765207303274,0.29541778,90393.0,90392.0,0.00023826]
[1765207303511,0.29541778,90393.0,90392.0,0.00223826]
[1765207303512,0.51228597,90393.0,90392.0,0.00223826]
[1765207303728,0.51228597,90393.0,90392.0,0.00423826]
[1765207303729,1.32666725,90393.0,90392.0,0.00423826]
[1765207303956,1.32566725,90393.0,90392.0,0.00023826]
[1765207304175,1.33866725,90393.0,90392.0,0.00223826]
[1765207304386,1.34166725,90393.0,90392.0,0.00223826]
[1765207304819,1.33866725,90393.0,90392.0,0.00223826]
[1765207305253,1.23518797,90393.0,90392.0,0.00223826]
[1765207305661,1.23518797,90393.0,90392.0,0.00023826]
[1765207305869,1.22218797,90393.0,90392.0,0.00023826]
[1765207306079,1.23718797,90393.0,90392.0,0.00223826]
[1765207306510,1.21498797,90393.0,90392.0,0.00223826]
[1765207306729,1.34566725,90393.0,90392.0,0.00223826]
[1765207306934,1.23718797,90393.0,90392.0,0.00223826]
[1765207307189,1.25494797,90393.0,90392.0,0.00223826]
[1765207307396,1.23494797,90393.0,90392.0,0.00023826]
[1765207307604,1.25394797,90393.0,90392.0,0.00323826]
[1765207307822,1.18638897,90393.0,90392.0,0.00323826]
[1765207308034,0.98647197,90393.0,90392.0,0.00323826]
[1765207308242,0.87204597,90393.0,90392.0,0.00323826]
[1765207308894,0.85304597,90393.0,90392.0,0.00023826]
[1765207309113,0.86404597,90393.0,90392.0,0.00123826]
[1765207309320,0.11796691,90393.0,90392.0,0.00123826]
[1765207309522,0.07920691,90393.0,90392.0,0.00023826]
[1765207309781,0.07920691,90393.0,90392.0,0.00123826]
[1765207309782,0.08759404,90393.0,90392.0,0.00123826]
[1765207309978,0.25855212,90393.0,90392.0,0.00123826]
[1765207310154,0.56239404,90393.0,90392.0,0.00123826]
[1765207310537,0.54939404,90393.0,90392.0,0.00023826]
[1765207310739,0.55339404,90393.0,90392.0,0.00023826]
[1765207310957,0.55539404,90393.0,90392.0,0.00023826]
[1765207311168,0.43484404,90393.0,90392.0,0.00023826]
[1765207311371,0.23239404,90393.0,90392.0,0.00023826]
[1765207311572,0.06139404,90393.0,90392.0,0.00023826]
[1765207311983,0.22607028,90393.0,90392.0,0.00023826]
[1765207312139,0.24827028,90393.0,90392.0,0.00023826]
[1765207312351,0.23240404,90393.0,90392.0,0.00023826]
[1765207312968,0.21020404,90393.0,90392.0,0.00023826]
[1765207313167,0.11232404,90393.0,90392.0,0.00023826]
[1765207313373,0.06139404,90393.0,90392.0,0.22149677]
[1765207314966,0.21144691,90393.0,90392.0,0.00023826]
[1765207315304,0.47706106,90393.0,90392.0,0.00023826]
[1765207315458,0.45490298,90393.0,90392.0,0.00023826]
[1765207317162,0.06139404,90393.0,90392.0,0.00023826]
[1765207317405,0.08355212,90393.0,90392.0,0.00023826]
[1765207318065,0.08355212,90393.0,90392.0,0.22149677]
[1765207318066,0.00638884,90393.0,90392.0,0.22149677]
[1765207318267,0.37657491,90393.0,90392.0,0.00023826]
[1765207318439,0.39877491,90393.0,90392.0,0.00023826]
[1765207319027,0.39677491,90393.0,90392.0,0.00023826]
[1765207319251,0.39677491,90393.0,90392.0,0.00223826]
[1765207319450,0.02658884,90393.0,90392.0,0.22349677]
[1765207319647,0.24784491,90393.0,90392.0,0.00223826]
[1765207319885,0.24784491,90393.0,90392.0,0.00023826]
[1765207320209,0.37773491,90393.0,90392.0,0.00023826]
[1765207320550,0.37473491,90393.0,90392.0,0.00023826]
[1765207320979,0.87035005,90393.0,90392.0,0.00023826]
[1765207321309,0.62900843,90381.0,90360.0,0.0002]
[1765207321453,2.0910953,90381.0,90360.0,0.01126684]
[1765207321668,2.0910953,90381.0,90377.0,0.01106476]
[1765207321669,0.00161287,90381.0,90377.0,0.01106476]
[1765207321866,0.0222,90381.0,90380.0,0.22148789]
[1765207322068,0.0222,90381.0,90380.0,0.23255228]
[1765207322459,0.0222,90381.0,90380.0,0.0002]
[1765207322650,0.0222,90383.0,90382.0,0.22128186]
[1765207322867,0.0222,90383.0,90382.0,0.22128299]
[1765207323062,0.33445164,90393.0,90391.0,0.22126078]
[1765207323063,0.00038884,90393.0,90391.0,0.22126078]
[1765207323271,0.00038884,90393.0,90392.0,0.22125851]
[1765207323472,0.00038884,90393.0,90388.0,0.01106341]
[1765207323473,0.22164604,90393.0,90388.0,0.23233115]
[1765207323708,0.02215808,90392.0,90390.0,0.23232658]
[1765207323850,0.01106329,90389.0,90384.0,0.23234046]
[1765207324068,0.01106329,90389.0,90381.0,0.01106427]
[1765207324069,0.0222,90382.0,90381.0,0.23234849]
[1765207324424,0.003,90383.0,90381.0,0.39586849]
[1765207324625,0.009,90383.0,90382.0,0.16352]
[1765207324918,0.003,90383.0,90382.0,0.16352]
[1765207325082,0.003,90383.0,90381.0,0.23234849]
[1765207325281,0.002,90382.0,90381.0,0.23234849]
[1765207325494,0.04474692,90393.0,90392.0,0.22125851]
[1765207325731,0.0222,90392.0,90391.0,0.22126068]
[1765207326200,0.02254692,90393.0,90391.0,0.22126068]
[1765207326394,0.00038884,90393.0,90391.0,0.22126068]
[1765207326595,0.02254692,90393.0,90391.0,0.22126068]
[1765207327298,0.02254692,90393.0,90391.0,0.22326068]
[1765207327538,0.00038884,90393.0,90391.0,0.22326068]
[1765207327875,0.00238884,90393.0,90391.0,0.22426068]
[1765207328077,0.00238884,90393.0,90391.0,0.32144068]
[1765207328283,0.00238884,90393.0,90392.0,0.16352]
[1765207329308,0.00038884,90393.0,90392.0,0.16352]
[1765207329987,0.00038884,90393.0,90392.0,0.06634]
[1765207330193,0.00038884,90393.0,90392.0,0.002]
[1765207330608,0.00238884,90393.0,90392.0,0.004]
[1765207330800,0.00238884,90393.0,90391.0,0.22126068]
[1765207331053,0.00200171,90393.0,90392.0,0.003]
[1765207331270,0.00200171,90393.0,90392.0,0.008]
[1765207331271,0.36155068,90393.0,90392.0,0.008]
[1765207331480,0.36155068,90393.0,90370.0,0.01126561]
[1765207331481,0.22128544,90381.0,90370.0,0.22151205]
[1765207331700,0.30745831,90381.0,90370.0,0.01126561]
[1765207331914,0.30745831,90381.0,90375.0,0.011065]
[1765207332126,0.14204287,90381.0,90379.0,0.22128939]
[1765207332351,0.14204287,90381.0,90370.0,0.0002]
[1765207332602,0.62127952,90381.0,90370.0,0.0002]
[1765207332824,0.54976586,90381.0,90370.0,0.0002]
[1765207333027,0.54976586,90381.0,90380.0,0.00055745]
[1765207333028,1.64140786,90381.0,90380.0,0.00055745]
[1765207333229,1.58147206,90381.0,90380.0,0.00055745]
[1765207333440,1.58147206,90381.0,90380.0,0.00155745]
[1765207333650,1.34089006,90381.0,90380.0,0.00155745]
[1765207333875,1.09942806,90381.0,90380.0,0.00055745]
[1765207334093,1.10242806,90381.0,90380.0,0.00155745]
[1765207334335,1.09942806,90381.0,90380.0,0.00055745]
[1765207334540,1.11542806,90381.0,90380.0,0.00255745]
[1765207334744,1.12042806,90381.0,90380.0,0.00255745]
[1765207335365,1.14963131,90381.0,90380.0,0.00255745]
[1765207336201,1.14963131,90381.0,90370.0,0.0002]
[1765207336202,0.01106525,90373.0,90370.0,0.0002]
[1765207336386,2.39175,90371.0,90370.0,0.0002]
[1765207336599,2.43732,90371.0,90370.0,0.0002]
[1765207336799,2.53401,90371.0,90370.0,0.0002]
[1765207337021,0.60685741,90361.0,90360.0,0.0002]
[1765207337235,0.60685741,90361.0,90323.0,0.3321406]
[1765207337236,0.62908191,90351.0,90325.0,0.01107113]
[1765207337445,0.62908191,90351.0,90324.0,0.01107125]
[1765207337446,1.51842791,90351.0,90326.0,0.011071]
[1765207337656,1.61562791,90351.0,90325.0,0.01107113]
[1765207337895,1.61562791,90351.0,90324.0,0.01107125]
[1765207337896,1.48315091,90351.0,90332.0,0.01107027]
[1765207338109,1.48315091,90351.0,90329.0,0.01107064]
[1765207338316,1.48353951,90351.0,90322.0,0.01107149]
[1765207338513,1.48353951,90351.0,90320.0,0.01107174]
[1765207338514,1.59201879,90351.0,90324.0,0.01107125]
[1765207338731,1.59201879,90351.0,90325.0,0.01107113]
[1765207338955,1.59201879,90351.0,90302.0,0.22147824]
[1765207338956,0.56658342,90341.0,90302.0,0.22147824]
[1765207339155,0.56658342,90341.0,90290.0,0.0002]
[1765207339156,0.0222,90305.0,90303.0,0.01107382]
[1765207339369,0.0222,90305.0,90290.0,0.0002]
[1765207339370,0.2214803,90302.0,90296.0,0.01107468]
[1765207339547,0.06478,90301.0,90290.0,0.0002]
[1765207339744,0.17152,90301.0,90290.0,0.0002]
[1765207339950,0.17152,90301.0,90290.0,0.01127542]
[1765207340159,0.17152,90301.0,90294.0,0.01107493]
[1765207340372,0.17352099,90301.0,90295.0,0.01107481]
[1765207340577,0.17352099,90301.0,90297.0,0.22148943]
[1765207340728,0.17352099,90301.0,90294.0,0.23257196]
[1765207340729,0.17352099,90301.0,90294.0,0.01107493]
[1765207340933,0.17552099,90301.0,90295.0,0.01107481]
[1765207341257,0.03820099,90301.0,90296.0,0.01107468]
[1765207341574,0.18752099,90301.0,90298.0,0.01107444]
[1765207341750,0.08078099,90301.0,90294.0,0.01107493]
[1765207341950,0.08078099,90301.0,90293.0,0.01107505]
[1765207341951,0.18752099,90301.0,90293.0,0.23257473]
[1765207342153,0.18752099,90301.0,90290.0,0.0002]
[1765207342360,0.18752099,90301.0,90300.0,0.00258528]
[1765207342361,2.68152326,90301.0,90300.0,0.00258528]
[1765207342560,2.68152326,90301.0,90253.0,0.09518]
[1765207342561,0.01108008,90252.0,90246.0,0.01108082]
[1765207342905,0.0222,90251.0,90250.0,0.01108033]
[1765207343056,0.03207,90251.0,90248.0,0.01108057]
[1765207343237,0.0772052,90249.0,90248.0,0.01108057]
[1765207343641,0.0550052,90249.0,90248.0,0.07452057]
[1765207343845,0.05509531,90249.0,90248.0,0.17080937]
[1765207344038,0.05509531,90249.0,90248.0,0.16970057]
[1765207344296,0.05509531,90249.0,90248.0,0.07452057]
[1765207344785,0.05509531,90249.0,90248.0,0.16970057]
[1765207344993,0.00309011,90249.0,90248.0,0.16970057]
[1765207345196,0.00309011,90249.0,90248.0,0.51860968]
[1765207345421,0.00309011,90249.0,90248.0,0.49270057]
[1765207345795,0.00309011,90249.0,90248.0,0.49570057]
[1765207346258,0.00309011,90249.0,90248.0,0.51490057]
[1765207346469,9.011e-05,90249.0,90248.0,0.51490057]
[1765207346615,0.00109011,90249.0,90248.0,0.52090057]
[1765207346818,0.00409011,90249.0,90248.0,0.52090057]
[1765207347028,9.011e-05,90249.0,90248.0,0.51490057]
[1765207347411,0.00409011,90249.0,90248.0,0.52190057]
[1765207347609,0.0550052,90283.0,90248.0,0.52190057]
[1765207347610,0.0550052,90283.0,90282.0,0.2215281]
[1765207347840,0.0550052,90283.0,90282.0,0.2849681]
[1765207347841,0.05539494,90283.0,90282.0,0.2849681]
[1765207348451,0.00038974,90283.0,90282.0,0.38068513]
[1765207349080,0.00138974,90283.0,90282.0,0.38068513]
[1765207349286,0.00138974,90283.0,90282.0,0.39844513]
[1765207349484,0.00038974,90283.0,90282.0,0.39844513]
[1765207349682,0.00238974,90283.0,90282.0,0.42464513]
[1765207349880,0.00238974,90283.0,90282.0,0.40244513]
[1765207350196,0.00038974,90283.0,90282.0,0.39844513]
[1765207350404,0.00238974,90283.0,90282.0,0.40044513]
[1765207350557,0.00238974,90283.0,90282.0,0.40444513]
[1765207351807,0.00238974,90283.0,90282.0,0.72744513]
[1765207356263,0.00238974,90283.0,90282.0,0.22806513]
[1765207356607,0.00238974,90283.0,90282.0,0.00653703]
[1765207357030,0.02620261,90283.0,90282.0,0.00653703]
[1765207357230,0.15235261,90283.0,90282.0,0.00653703]
[1765207357564,0.2548356,90283.0,90282.0,0.00653703]
[1765207357762,0.2548356,90283.0,90282.0,0.00253703]
[1765207358181,2.5778356,90283.0,90282.0,0.00453703]
[1765207358630,2.5778356,90283.0,90282.0,0.00053703]
[1765207358631,2.5758356,90283.0,90282.0,0.00053703]
[1765207358834,2.68431488,90283.0,90282.0,0.00053703]
[1765207359031,2.69331488,90283.0,90282.0,0.00153703]
[1765207359236,2.69031488,90283.0,90282.0,0.00053703]
[1765207359532,2.68431488,90283.0,90282.0,0.00053703]
[1765207359671,2.71431488,90283.0,90282.0,0.00353703]
[1765207360009,0.7262236,90283.0,90282.0,0.00153703]
[1765207360212,0.7659836,90283.0,90282.0,0.00353703]
[1765207360443,0.6784636,90283.0,90282.0,0.00153703]
[1765207360640,0.42401261,90283.0,90282.0,0.00153703]
[1765207360849,2.22708849,90283.0,90282.0,0.00053703]
[1765207361048,0.5758356,90283.0,90282.0,0.00053703]
[1765207361231,0.5828356,90283.0,90282.0,0.00053703]
[1765207361712,0.5978356,90283.0,90282.0,0.00253703]
[1765207361910,1.5599876,90283.0,90282.0,0.00253703]
[1765207362228,1.55588656,90283.0,90282.0,0.00053703]
[1765207362398,1.56988656,90283.0,90282.0,0.00253703]
[1765207362602,1.5519876,90283.0,90282.0,0.00253703]
[1765207362807,1.5569876,90283.0,90282.0,0.00253703]
[1765207366070,0.6836486,90283.0,90282.0,0.00253703]
[1765207366309,0.7014086,90283.0,90282.0,0.00253703]
[1765207367795,0.92293424,90283.0,90282.0,0.00253703]
[1765207368613,0.90517424,90283.0,90282.0,0.00253703]
[1765207368813,0.92293424,90283.0,90282.0,0.00253703]
[1765207369197,0.86041125,90283.0,90282.0,0.00253703]
[1765207369745,0.88868625,90283.0,90282.0,0.00253703]
[1765207369951,0.87092625,90283.0,90282.0,0.00253703]
[1765207370145,0.88868625,90283.0,90282.0,0.00253703]
[1765207370565,0.54348625,90283.0,90282.0,0.00253703]
[1765207370742,0.56568625,90283.0,90282.0,0.00253703]
[1765207370946,0.87092625,90283.0,90282.0,0.00253703]
[1765207371148,0.88868625,90283.0,90282.0,0.00253703]
[1765207371675,0.73663825,90283.0,90282.0,0.00253703]
[1765207371884,0.91283825,90283.0,90282.0,0.00253703]
[1765207374572,0.93232825,90283.0,90282.0,0.00253703]
[1765207374777,0.91456825,90283.0,90282.0,0.00253703]
[1765207375001,0.75883825,90283.0,90282.0,0.00253703]
[1765207375181,0.98202825,90283.0,90282.0,0.00253703]
[1765207375415,1.04455124,90283.0,90282.0,0.00253703]
[1765207375615,1.04455124,90283.0,90255.0,0.01107971]
[1765207375616,0.0222,90258.0,90255.0,0.01107971]
[1765207375792,0.01107971,90255.0,90250.0,0.01108033]
[1765207375991,0.22159927,90254.0,90250.0,0.01108033]
[1765207376245,0.01207971,90255.0,90249.0,0.2326847]
[1765207376246,0.0269,90251.0,90249.0,0.2326847]
[1765207376443,0.0269,90251.0,90247.0,0.0110807]
[1765207376697,0.0269,90251.0,90241.0,0.04877143]
[1765207376698,0.0550052,90249.0,90241.0,0.04877143]
[1765207376898,0.0550052,90249.0,90244.0,0.01108106]
[1765207376899,0.3619943,90249.0,90244.0,0.01108106]
[1765207377109,0.4554743,90249.0,90248.0,0.10011665]
[1765207377501,0.94947657,90249.0,90248.0,0.10011665]
[1765207377705,2.94947657,90249.0,90248.0,0.10111665]
[1765207377841,2.65215657,90249.0,90248.0,0.10111665]
[1765207378075,1.87184129,90249.0,90248.0,0.10211665]
[1765207378552,1.87184129,90249.0,90248.0,0.10111665]
[1765207378703,1.89522932,90249.0,90248.0,0.10111665]
[1765207378905,1.90222932,90249.0,90248.0,0.10011665]
[1765207379108,1.90422932,90249.0,90248.0,0.10011665]
[1765207379343,1.87884129,90249.0,90248.0,0.10011665]
[1765207379546,1.98732057,90249.0,90248.0,0.10011665]
[1765207379755,2.00732057,90249.0,90248.0,0.10011665]
[1765207380176,2.00032057,90249.0,90248.0,0.10011665]
[1765207380500,1.98632057,90249.0,90248.0,0.10111665]
[1765207380715,1.20145029,90249.0,90248.0,0.10111665]
[1765207380887,1.23721029,90249.0,90248.0,0.10111665]
[1765207381114,1.23721029,90249.0,90225.0,0.01783568]
[1765207381115,0.0222,90226.0,90225.0,0.01783568]
[1765207381399,0.0222,90231.0,90230.0,0.01108278]
[1765207381548,0.01108205,90236.0,90230.0,0.01108278]
[1765207381549,0.22163205,90240.0,90237.0,0.22163791]
[1765207381758,0.0222,90234.0,90233.0,0.01108241]
[1765207381955,0.0222,90233.0,90232.0,0.01108254]
[1765207382168,0.02161273,90233.0,90232.0,0.01108254]
[1765207382359,0.02211264,90233.0,90232.0,0.23273339]
[1765207382590,0.07711784,90233.0,90232.0,0.23273339]
[1765207382972,0.01108106,90244.0,90232.0,0.23273339]
[1765207382973,0.04748,90259.0,90248.0,0.22161155]
[1765207383181,0.04748,90259.0,90246.0,0.01108082]
[1765207383182,0.04748,90252.0,90247.0,0.22161401]
[1765207383409,0.02211264,90248.0,90247.0,0.22161401]
[1765207383580,0.04748,90252.0,90247.0,0.22161401]
[1765207383787,0.01108057,90248.0,90243.0,0.01108119]
[1765207383986,0.04748,90252.0,90225.0,9.011e-05]
[1765207383987,0.01108156,90240.0,90236.0,0.22163988]
[1765207384331,0.1670752,90249.0,90238.0,0.23271684]
[1765207384332,0.02211264,90239.0,90238.0,0.23271684]
[1765207384741,0.0110807,90247.0,90244.0,0.22162038]
[1765207384939,0.02211264,90244.0,90243.0,0.002]
[1765207385145,0.08461551,90244.0,90243.0,0.002]
[1765207385365,0.17892551,90244.0,90243.0,0.002]
[1765207386095,0.08461551,90244.0,90241.0,0.01108143]
[1765207386286,0.02372551,90244.0,90243.0,0.22162383]
[1765207386545,0.09431,90253.0,90243.0,0.22162383]
[1765207386546,0.04748,90264.0,90262.0,0.22157663]
[1765207386740,0.04748,90264.0,90252.0,0.01108008]
[1765207386741,0.04748,90244.0,90243.0,0.23270316]
[1765207386911,0.06959264,90244.0,90243.0,0.23270316]
[1765207387162,0.0126932,90250.0,90247.0,0.22161401]
[1765207387163,0.04427072,90248.0,90247.0,0.22161401]
[1765207387371,0.00161287,90250.0,90249.0,0.2216091]
[1765207387505,0.05661807,90250.0,90249.0,0.2216091]
[1765207388356,0.0550052,90250.0,90249.0,0.2216091]
[1765207388560,0.02921675,90277.0,90249.0,0.2216091]
[1765207388561,0.07711784,90269.0,90268.0,0.22156245]
[1765207388750,0.02211264,90268.0,90267.0,0.22156491]
[1765207389154,0.0550052,90269.0,90267.0,0.38400491]
[1765207389325,0.0550052,90269.0,90268.0,0.16244]
[1765207389529,0.0550052,90269.0,90256.0,0.01107959]
[1765207389530,0.01107861,90264.0,90256.0,0.01107959]
[1765207389711,0.01107861,90264.0,90249.0,0.09852]
[1765207389712,0.22158773,90258.0,90250.0,0.01108033]
[1765207389916,0.02211264,90255.0,90251.0,0.22160402]
[1765207390112,0.00200269,90258.0,90256.0,0.22159048]
[1765207390315,0.00200269,90258.0,90255.0,0.01107971]
[1765207390535,0.02961789,90258.0,90255.0,0.22159266]
[1765207390757,0.02211264,90257.0,90256.0,0.22159015]
[1765207390965,0.01508204,90258.0,90254.0,0.23267161]
[1765207391162,0.01508204,90258.0,90250.0,0.01108033]
[1765207391163,0.01107984,90254.0,90250.0,0.01108033]
[1765207391402,0.00400269,90258.0,90257.0,0.22158946]
[1765207391925,0.00238982,90258.0,90257.0,0.22158946]
[1765207392123,0.00438982,90258.0,90257.0,0.28587946]
[1765207392326,0.00238982,90258.0,90257.0,0.38227946]
[1765207392683,0.00038982,90258.0,90257.0,0.38227946]
[1765207392827,0.00238982,90258.0,90257.0,0.38227946]
[1765207393268,0.00238982,90258.0,90257.0,0.22158946]
[1765207393475,0.00238982,90258.0,90257.0,0.28687946]
[1765207393714,0.00238982,90258.0,90257.0,0.22258946]
[1765207393917,0.00238982,90258.0,90257.0,0.001]
[1765207396304,0.0245479,90258.0,90257.0,0.001]
[1765207396503,0.0245479,90258.0,90214.0,0.07871286]
[1765207396504,0.18282811,90258.0,90214.0,0.07871286]
[1765207396702,0.18282811,90258.0,90202.0,0.13549]
[1765207396703,0.18282811,90258.0,90216.0,0.0110845]
[1765207396704,0.11636287,90221.0,90216.0,0.0110845]
[1765207396903,0.23278112,90214.0,90210.0,0.22174372]
[1765207397147,0.02211264,90211.0,90210.0,4.016e-05]
[1765207397348,0.08627287,90211.0,90210.0,4.016e-05]
[1765207397523,0.17965287,90211.0,90210.0,4.016e-05]
[1765207397726,0.98666351,90211.0,90210.0,4.016e-05]
[1765207397926,1.53567098,90211.0,90210.0,0.00013027]
[1765207398123,1.53567098,90211.0,90161.0,0.0964]
[1765207398124,0.22175161,90191.0,90161.0,0.10749127]
[1765207398370,0.29272712,90191.0,90190.0,0.00031699]
[1765207398768,0.29272712,90191.0,90190.0,0.00306489]
[1765207398968,0.29272712,90191.0,90190.0,0.00274489]
[1765207398969,1.51172211,90191.0,90190.0,0.00274489]
[1765207399344,1.06706911,90191.0,90190.0,0.00274489]
[1765207399634,1.06906911,90191.0,90190.0,0.00274489]
[1765207399963,1.06706911,90191.0,90190.0,0.00274489]
[1765207400129,1.07406911,90191.0,90190.0,0.00374489]
[1765207400335,0.24391836,90169.0,90168.0,9e-05]
[1765207400636,0.36675135,90169.0,90168.0,0.00020686]
[1765207400828,0.35773572,90169.0,90168.0,0.00020686]
[1765207401112,0.39760836,90169.0,90168.0,0.00020686]
[1765207401780,0.41260836,90169.0,90168.0,0.00020686]
[1765207401983,1.98085135,90169.0,90168.0,0.00020686]
[1765207402200,1.98085135,90169.0,90141.0,0.00756578]
[1765207402202,2.22185,90151.0,90141.0,0.00756578]
[1765207402421,1.91463915,90142.0,90141.0,0.00756578]
[1765207402599,2.01939214,90142.0,90141.0,0.00756578]
[1765207402786,2.13488478,90142.0,90141.0,0.00756578]
[1765207402985,2.13488478,90142.0,90140.0,0.0002]
[1765207402986,2.11277214,90142.0,90140.0,0.0002]
[1765207403190,2.11277214,90142.0,90088.0,0.01110025]
[1765207403191,0.01109877,90100.0,90088.0,0.01110025]
[1765207403552,0.06252299,90130.0,90059.0,0.4839975]
[1765207403553,0.06252299,90130.0,90078.0,0.01110148]
[1765207403554,0.78383229,90092.0,90078.0,0.01110148]
[1765207403752,0.86411528,90092.0,90059.0,0.039848]
[1765207403948,0.93973528,90092.0,90072.0,0.01110222]
[1765207404129,0.23309047,90094.0,90059.0,0.039848]
[1765207404130,0.01109951,90094.0,90085.0,0.2331129]
[1765207404326,0.50182664,90092.0,90074.0,0.01110198]
[1765207404623,0.50182664,90092.0,90070.0,0.01110247]
[1765207404624,0.497474,90092.0,90070.0,0.01110247]
[1765207404823,0.6120492,90092.0,90080.0,0.01110124]
[1765207405148,0.34292184,90092.0,90079.0,0.01110136]
[1765207405362,0.34292184,90092.0,90083.0,0.01110087]
[1765207405586,0.0727652,90092.0,90087.0,0.01110038]
[1765207405735,0.0770052,90092.0,90091.0,0.011302]
[1765207406140,0.00265358,90092.0,90091.0,0.17467449]
[1765207406341,0.02921675,90167.0,90091.0,0.17467449]
[1765207406342,0.01109668,90117.0,90105.0,0.01109816]
[1765207406548,0.01109582,90124.0,90117.0,0.01109668]
[1765207406741,0.22194109,90114.0,90106.0,0.2219608]
[1765207406943,0.01109742,90111.0,90105.0,0.01148786]
[1765207407192,0.01109779,90108.0,90105.0,0.0003897]
[1765207407409,0.01109779,90108.0,90105.0,0.23345024]
[1765207407410,0.02211264,90108.0,90105.0,0.23345024]
[1765207407599,0.0178,90107.0,90105.0,0.0003897]
[1765207407939,0.23302874,90118.0,90110.0,0.01109754]
[1765207408140,0.00161287,90124.0,90105.0,0.0003897]
[1765207408311,0.02211264,90120.0,90119.0,0.01109643]
[1765207408531,0.01270869,90124.0,90119.0,0.01109643]
[1765207408663,0.22188258,90138.0,90105.0,0.0003897]
[1765207408664,0.03991264,90129.0,90127.0,0.01109545]
[1765207408863,0.03991264,90129.0,90127.0,0.23300445]
[1765207409066,0.2768696,90146.0,90142.0,0.22187215]
[1765207409067,0.07711784,90146.0,90142.0,0.22187215]
[1765207409295,0.0550052,90146.0,90144.0,0.22186723]
[1765207409653,0.07711784,90146.0,90144.0,0.22186723]
[1765207409843,0.0550052,90146.0,90144.0,0.22186723]
[1765207410252,0.05512223,90146.0,90144.0,0.22186723]
[1765207410451,0.00011703,90146.0,90144.0,0.22186723]
[1765207411020,0.0550052,90145.0,90144.0,0.22186723]
[1765207411224,0.00011703,90146.0,90145.0,0.0964]
[1765207411586,0.00011703,90146.0,90145.0,0.09774544]
[1765207411923,0.00211703,90146.0,90145.0,0.09774544]
[1765207412133,0.00011703,90146.0,90145.0,0.09774544]
[1765207412545,0.00211703,90146.0,90145.0,0.09774544]
[1765207412746,0.00011703,90146.0,90145.0,0.09774544]
[1765207413090,0.00111703,90146.0,90145.0,0.10474544]
[1765207414084,0.00311703,90146.0,90145.0,0.10474544]
[1765207414287,0.00111703,90146.0,90145.0,0.10474544]
[1765207414460,0.0027299,90146.0,90145.0,0.00834544]
[1765207414851,0.10400582,90146.0,90145.0,0.00834544]
[1765207415048,0.0567351,90146.0,90145.0,0.00134544]
[1765207415436,0.0587351,90146.0,90145.0,0.00134544]
[1765207415644,0.07884774,90146.0,90145.0,0.00734544]
[1765207415869,0.09664774,90146.0,90145.0,0.22921021]
[1765207416037,0.0627351,90146.0,90145.0,0.00134544]
[1765207416239,0.30675549,90146.0,90145.0,0.00134544]
[1765207416564,0.28659741,90146.0,90145.0,0.00134544]
[1765207416787,0.30871005,90146.0,90145.0,0.00134544]
[1765207416995,0.0647351,90146.0,90145.0,0.22321021]
[1765207417397,0.06312223,90146.0,90145.0,0.38390021]
[1765207417595,0.06312223,90146.0,90145.0,0.22321021]
[1765207417801,0.06112223,90146.0,90145.0,0.22321021]
[1765207418104,0.05512223,90146.0,90145.0,0.38390021]
[1765207418325,0.07212223,90146.0,90145.0,0.28750021]
[1765207418483,0.05712223,90146.0,90145.0,0.28750021]
[1765207418683,0.05712223,90146.0,90145.0,0.38390021]
[1765207418684,0.05512223,90146.0,90145.0,0.38390021]
[1765207418870,0.06212223,90146.0,90145.0,0.38390021]
[1765207419069,0.05512223,90146.0,90145.0,0.38790021]
[1765207419509,0.05512223,90146.0,90145.0,0.38390021]
[1765207419870,0.05512223,90146.0,90145.0,0.38590021]
[1765207420389,0.05712223,90146.0,90145.0,0.22521021]
[1765207420754,0.10459223,90146.0,90145.0,0.22521021]
[1765207420987,0.10459223,90146.0,90145.0,0.00134544]
[1765207420988,0.44080741,90146.0,90145.0,0.00134544]
[1765207421191,2.0335104,90146.0,90145.0,0.00134544]
[1765207421392,2.05362304,90146.0,90145.0,0.00534544]
[1765207421597,2.05562304,90146.0,90145.0,0.00534544]
[1765207421917,2.05362304,90146.0,90145.0,0.00134544]
[1765207422125,2.05962304,90146.0,90145.0,0.00134544]
[1765207422295,2.07862304,90146.0,90145.0,0.00134544]
[1765207422495,0.0110968,90116.0,90112.0,0.0110973]
[1765207422702,0.01109643,90119.0,90112.0,0.0110973]
[1765207422703,0.02211264,90117.0,90116.0,0.23303146]
[1765207422935,0.02211264,90117.0,90116.0,0.0110968]
[1765207423133,0.02211264,90117.0,90114.0,0.22194109]
[1765207423401,0.02211264,90114.0,90113.0,0.01109717]
[1765207423602,0.02211264,90111.0,90107.0,0.2219563]
[1765207423885,0.02211264,90111.0,90094.0,0.01109951]
[1765207423886,0.01109902,90098.0,90094.0,0.01109951]
[1765207424094,0.02211264,90099.0,90094.0,0.01109951]
[1765207424095,0.02211264,90099.0,90096.0,0.01109927]
[1765207424301,0.02211264,90099.0,90094.0,0.0003897]
[1765207424302,0.06610434,90097.0,90094.0,0.0003897]
[1765207424520,0.24410054,90095.0,90094.0,0.0003897]
[1765207424735,0.02211264,90095.0,90094.0,0.0003897]
[1765207425349,0.0550052,90097.0,90095.0,0.2219879]
[1765207425350,0.02211264,90096.0,90095.0,0.2219879]
[1765207425581,0.0550052,90097.0,90094.0,0.0003897]
[1765207425582,0.02211264,90095.0,90094.0,0.0003897]
[1765207425786,0.06161283,90095.0,90094.0,0.0003897]
[1765207425982,0.17513547,90095.0,90094.0,0.0003897]
[1765207426496,0.20364563,90095.0,90094.0,0.0003897]
[1765207426693,0.20364563,90095.0,90091.0,0.010302]
[1765207426694,0.60751828,90092.0,90091.0,0.010302]
[1765207426899,0.69470086,90092.0,90091.0,0.010302]
[1765207427076,0.78611086,90092.0,90091.0,0.010302]
[1765207427286,0.78611086,90092.0,90073.0,4.016e-05]
[1765207427287,0.30666789,90077.0,90073.0,4.016e-05]
[1765207427503,0.2650049,90077.0,90073.0,4.016e-05]
[1765207427676,0.02211264,90079.0,90077.0,0.01110161]
[1765207427883,0.02211264,90079.0,90077.0,0.23313387]